bitfinex-derivatives/quotes_BNBF0:USTF0_20250211
["timestamp","ask_amount","ask_price","bid_price","bid_amount"]
[1739302870119,0.31892331,627.11,625.18,0.31990786]
[1739302870324,1.32597204,627.1,625.18,0.31990786]
[1739302870527,1.32597204,627.09,625.18,0.31990786]
[1739302870723,1.64491061,627.08,625.18,0.31990786]
[1739302870922,0.31894874,627.06,625.18,0.31990786]
[1739302871122,1.32597204,627.05,625.18,0.31990786]
[1739302871325,0.318964,627.03,625.18,0.31990786]
[1739302871525,1.32597204,627.02,625.18,0.31990786]
[1739302871825,0.31897926,627.0,625.18,0.31990786]
[1739302872025,1.32597204,626.99,625.18,0.31990786]
[1739302872227,0.31899452,626.97,625.18,0.31990786]
[1739302872421,1.32487001,626.96,625.18,0.31990786]
[1739302872623,2.14295619,627.56,625.18,0.31990786]
[1739302872624,0.31900979,626.94,625.18,0.31990786]
[1739302872825,1.32487001,626.93,625.18,0.31990786]
[1739302873021,0.31902505,626.91,625.18,0.31990786]
[1739302873225,1.32487001,626.9,625.18,0.31990786]
[1739302873425,0.31904032,626.88,625.18,0.31990786]
[1739302873619,1.32487001,626.87,625.18,0.31990786]
[1739302873820,0.31905559,626.85,625.18,0.31990786]
[1739302874023,1.32487001,626.84,625.18,0.31990786]
[1739302874223,2.89786109,627.5,625.18,0.31990786]
[1739302874224,0.31907086,626.82,625.18,0.31990786]
[1739302874423,1.32487001,626.81,625.18,0.31990786]
[1739302874621,0.31908613,626.79,625.18,0.31990786]
[1739302874827,1.32487001,626.78,625.18,0.31990786]
[1739302875027,0.31910141,626.76,625.18,0.31990786]
[1739302875326,1.32487001,626.75,625.18,0.31990786]
[1739302875521,0.31911668,626.73,625.18,0.31990786]
[1739302875727,1.32487001,626.72,625.18,0.31990786]
[1739302875927,1.64399687,626.71,625.18,0.31990786]
[1739302876128,1.64400197,626.7,625.18,0.31990786]
[1739302876323,0.31914214,626.68,625.18,0.31990786]
[1739302876528,1.32487001,626.67,625.18,0.31990786]
[1739302876728,0.31915742,626.65,625.18,0.31990786]
[1739302876922,1.32487001,626.64,625.18,0.31990786]
[1739302877122,0.3191727,626.62,625.18,0.31990786]
[1739302877321,1.32487001,626.61,625.18,0.31990786]
[1739302877526,1.6440529,626.6,625.18,0.31990786]
[1739302877723,1.64405799,626.59,625.18,0.31990786]
[1739302877928,1.64406308,626.58,625.18,0.31990786]
[1739302878128,1.64406818,626.57,625.18,0.31990786]
[1739302878430,1.32487001,626.56,625.18,0.31990786]
[1739302878726,1.32487001,626.55,625.18,0.31990786]
[1739302878927,1.32487001,626.54,625.18,0.31990786]
[1739302879128,1.32487001,626.53,625.18,0.31990786]
[1739302879328,1.32487001,626.52,625.18,0.31990786]
[1739302879523,1.32487001,626.51,625.18,0.31990786]
[1739302879829,1.32762252,626.5,625.18,0.31990786]
[1739302880031,1.32762252,626.49,625.18,0.31990786]
[1739302880329,1.32816963,626.48,625.18,0.31990786]
[1739302880529,1.32816963,626.47,625.18,0.31990786]
[1739302880729,1.32816963,626.46,625.18,0.31990786]
[1739302880926,1.32816963,626.45,625.18,0.31990786]
[1739302881131,1.32816963,626.44,625.18,0.31990786]
[1739302881326,1.32816963,626.43,625.18,0.31990786]
[1739302881529,1.32816963,626.42,625.18,0.31990786]
[1739302881728,1.32816963,626.41,625.18,0.31990786]
[1739302881933,1.32816963,626.4,625.18,0.31990786]
[1739302882134,1.32816963,626.39,625.18,0.31990786]
[1739302882327,1.32816963,626.38,625.18,0.31990786]
[1739302882632,1.32816963,626.37,625.18,0.31990786]
[1739302882833,1.32816963,626.36,625.18,0.31990786]
[1739302883032,1.32816963,626.35,625.18,0.31990786]
[1739302883233,1.32816963,626.34,625.18,0.31990786]
[1739302883433,1.32816963,626.33,625.18,0.31990786]
[1739302883629,0.31919817,626.57,625.18,0.31990786]
[1739302883630,1.32816963,626.32,625.18,0.31990786]
[1739302883936,1.32816963,626.31,625.18,0.31990786]
[1739302884128,1.32816963,626.3,625.18,0.31990786]
[1739302884329,1.32816963,626.29,625.18,0.31990786]
[1739302884535,1.32816963,626.28,625.18,0.31990786]
[1739302884728,1.32816963,626.27,625.18,0.31990786]
[1739302884933,1.32816963,626.26,625.18,0.31990786]
[1739302885234,1.32816963,626.25,625.18,0.31990786]
[1739302885431,1.32816963,626.24,625.18,0.31990786]
[1739302885635,1.32816963,626.23,625.18,0.31990786]
[1739302885829,1.32816963,626.22,625.18,0.31990786]
[1739302886034,1.32816963,626.21,625.18,0.31990786]
[1739302886236,1.32816963,626.2,625.18,0.31990786]
[1739302886431,1.32816963,626.19,625.18,0.31990786]
[1739302886736,1.32816963,626.18,625.18,0.31990786]
[1739302887037,1.32816963,626.17,625.18,0.31990786]
[1739302887336,1.32816963,626.16,625.18,0.31990786]
[1739302887538,1.32816963,626.15,625.18,0.31990786]
[1739302887838,1.32816963,626.14,625.18,0.31990786]
[1739302888141,1.32816963,626.13,625.18,0.31990786]
[1739302888336,1.32816963,626.12,625.18,0.31990786]
[1739302888533,1.33612329,626.11,625.18,0.31990786]
[1739302888736,1.33612329,626.1,625.18,0.31990786]
[1739302888937,1.33612329,626.09,625.18,0.31990786]
[1739302889137,1.17325967,627.53,625.18,0.31990786]
[1739302889338,1.33626633,627.52,625.18,0.31990786]
[1739302889539,1.33626633,627.51,625.18,0.31990786]
[1739302889735,1.33626633,627.5,625.18,0.31990786]
[1739302890038,0.31873017,627.49,625.38,1.18445702]
[1739302890234,1.33648902,627.48,625.4,0.31979533]
[1739302890439,0.31878606,627.38,625.4,0.31979533]
[1739302890637,1.33648902,627.37,625.4,0.31979533]
[1739302890839,0.3188013,627.35,625.4,0.31979533]
[1739302891036,1.33648902,627.34,625.4,0.31979533]
[1739302891341,0.31881655,627.32,625.4,0.31979533]
[1739302891545,1.33648902,627.31,625.4,0.31979533]
[1739302891740,0.3188318,627.29,625.4,0.31979533]
[1739302891941,1.33648902,627.28,625.4,0.31979533]
[1739302892138,0.31884704,627.26,625.4,0.31979533]
[1739302892337,1.33648902,627.25,625.4,0.31979533]
[1739302892541,0.31886229,627.23,625.4,0.31979533]
[1739302892740,1.33648902,627.22,625.4,0.31979533]
[1739302893037,0.31887755,627.2,625.4,0.31979533]
[1739302893243,1.33648902,627.19,625.4,0.31979533]
[1739302893437,1.33648902,627.18,625.4,0.31979533]
[1739302893639,1.33648902,627.17,625.4,0.31979533]
[1739302893840,1.33648902,627.16,625.4,0.31979533]
[1739302894042,0.31890805,627.14,625.4,0.31979533]
[1739302894241,1.33648902,627.13,625.4,0.31979533]
[1739302894442,1.33648902,627.12,625.4,0.31979533]
[1739302894639,1.33620014,627.11,625.4,0.31979533]
[1739302894843,0.31893348,627.09,625.4,0.31979533]
[1739302895038,1.33620014,627.08,625.4,0.31979533]
[1739302895238,0.31894874,627.06,625.4,0.31979533]
[1739302895544,1.33620014,627.05,625.4,0.31979533]
[1739302895843,0.318964,627.03,625.4,0.31979533]
[1739302896143,1.33620014,627.02,625.4,0.31979533]
[1739302896339,0.31897926,627.0,625.4,0.31979533]
[1739302896539,1.33620014,626.99,625.4,0.31979533]
[1739302896743,1.65518958,626.98,625.4,0.31979533]
[1739302896937,1.65519466,626.97,625.4,0.31979533]
[1739302897138,1.65519975,626.96,625.4,0.31979533]
[1739302897443,1.65520484,626.95,625.4,0.31979533]
[1739302897644,1.33620014,626.94,625.4,0.31979533]
[1739302897840,1.33620014,626.93,625.4,0.31979533]
[1739302898038,1.33620014,626.92,625.4,0.31979533]
[1739302898241,1.33620014,626.91,625.4,0.31979533]
[1739302898439,1.33620014,626.9,625.4,0.31979533]
[1739302898644,1.33620014,626.89,625.4,0.31979533]
[1739302898844,1.33620014,626.88,625.4,0.31979533]
[1739302899046,1.33620014,626.87,625.4,0.31979533]
[1739302899237,1.33620014,626.86,625.4,0.31979533]
[1739302899443,1.33620014,626.85,625.4,0.31979533]
[1739302899643,1.33620014,626.84,625.4,0.31979533]
[1739302899839,0.3190047,626.95,625.4,0.31979533]
[1739302899840,1.33620014,626.83,625.4,0.31979533]
[1739302900143,1.33620014,626.82,625.4,0.31979533]
[1739302900345,1.33620014,626.81,625.4,0.31979533]
[1739302900546,1.33620014,626.8,625.4,0.31979533]
[1739302900748,1.33620014,626.79,625.4,0.31979533]
[1739302900943,1.33620014,626.78,625.4,0.31979533]
[1739302901144,1.33620014,626.77,625.4,0.31979533]
[1739302901349,1.33620014,626.76,625.4,0.31979533]
[1739302901547,1.33620014,626.75,625.4,0.31979533]
[1739302901750,1.33620014,626.74,625.4,0.31979533]
[1739302901950,1.33620014,626.73,625.4,0.31979533]
[1739302902250,1.33620014,626.72,625.4,0.31979533]
[1739302902552,0.3190047,626.95,625.4,0.31979533]
[1739302902553,1.33620014,626.71,625.4,0.31979533]
[1739302902748,1.33620014,626.7,625.4,0.31979533]
[1739302903050,1.33620014,626.69,625.4,0.31979533]
[1739302903251,1.33620014,626.68,625.4,0.31979533]
[1739302903549,0.3190047,626.95,625.4,0.31979533]
[1739302903550,1.3397729,626.67,625.4,0.31979533]
[1739302903747,1.3397729,626.66,625.4,0.31979533]
[1739302903948,1.3397729,626.65,625.4,0.31979533]
[1739302904147,1.3397729,626.64,625.4,0.31979533]
[1739302904346,1.3397729,626.63,625.4,0.31979533]
[1739302904546,1.3397729,626.62,625.4,0.31979533]
[1739302904751,1.3397729,626.61,625.4,0.31979533]
[1739302904947,1.3397729,626.6,625.4,0.31979533]
[1739302905246,1.3397729,626.59,625.4,0.31979533]
[1739302905446,1.3403754,626.58,625.4,0.31979533]
[1739302905644,1.3403754,626.57,625.4,0.31979533]
[1739302905849,1.3403754,626.56,625.4,0.31979533]
[1739302906152,1.3403754,626.55,625.42,1.18445702]
[1739302906348,1.3403754,626.54,625.44,0.31977487]
[1739302906546,1.3403754,626.53,625.44,0.31977487]
[1739302906749,1.3403754,626.52,625.44,0.31977487]
[1739302906950,1.3403754,626.51,625.44,0.31977487]
[1739302907150,0.3190047,626.95,625.44,0.31977487]
[1739302907151,1.3403754,626.5,625.44,0.31977487]
[1739302907352,1.3403754,626.49,625.44,0.31977487]
[1739302907653,1.3403754,626.48,625.44,0.31977487]
[1739302907853,1.3403754,626.47,625.44,0.31977487]
[1739302908048,1.3403754,626.46,625.44,0.31977487]
[1739302908253,1.3403754,626.45,625.44,0.31977487]
[1739302908455,1.3403754,626.44,625.44,0.31977487]
[1739302908655,1.3403754,626.43,625.44,0.31977487]
[1739302908855,1.3403754,626.42,625.44,0.31977487]
[1739302909055,1.3403754,626.41,625.44,0.31977487]
[1739302909255,1.3403754,626.4,625.44,0.31977487]
[1739302909450,0.3190047,626.95,625.44,0.31977487]
[1739302909650,1.33936451,626.94,625.44,0.31977487]
[1739302909954,1.33937288,626.93,625.44,0.31977487]
[1739302910157,1.33937288,626.92,625.44,0.31977487]
[1739302910355,1.33937288,626.91,625.44,0.31977487]
[1739302910555,1.33937288,626.9,625.44,0.31977487]
[1739302910854,1.33937288,626.89,625.44,0.31977487]
[1739302911055,1.33937288,626.88,625.44,0.31977487]
[1739302911249,1.33937288,626.87,625.44,0.31977487]
[1739302911449,1.33937288,626.86,625.44,0.31977487]
[1739302911649,1.33937288,626.85,625.44,0.31977487]
[1739302911948,1.33937288,626.84,625.44,0.31977487]
[1739302912149,1.33937288,626.83,625.5,1.18445702]
[1739302912355,1.33937288,626.82,625.52,0.31973398]
[1739302912556,1.33937288,626.81,625.52,0.31973398]
[1739302912854,1.32467597,626.8,625.52,0.31973398]
[1739302913053,0.3190047,626.95,625.52,0.31973398]
[1739302913556,0.3190047,626.95,625.53,0.27290683]
[1739302913752,0.3190047,626.95,625.55,0.31971864]
[1739302913957,0.3190047,626.95,625.56,0.27290683]
[1739302914555,0.3190047,626.95,625.61,1.18445702]
[1739302914756,0.3190047,626.95,625.63,0.31967776]
[1739302914951,0.3190047,626.95,625.64,0.27290683]
[1739302915155,0.3190047,626.95,625.66,0.31966243]
[1739302915356,0.3190047,626.95,625.67,0.27290683]
[1739302915550,0.3190047,626.95,625.66,0.31966243]
[1739302915852,0.3190047,626.95,625.67,0.27223632]
[1739302916055,0.3190047,626.95,625.68,0.27223632]
[1739302916456,0.3190047,626.95,625.7,0.319642]
[1739302916656,0.3190047,626.95,625.71,0.27223632]
[1739302916857,0.3190047,626.95,625.72,0.27223632]
[1739302917052,0.3190047,626.95,625.73,0.59186299]
[1739302917257,0.3190047,626.95,625.42,1.66583561]
[1739302917258,0.3190047,626.95,625.88,1.18445702]
[1739302917451,0.3190047,626.95,625.89,0.27223632]
[1739302919358,0.3190047,626.95,625.88,1.18445702]
[1739302919561,0.3190047,626.95,625.89,0.27227326]
[1739302919955,0.3190047,626.95,625.88,0.27227326]
[1739302920155,0.3190047,626.95,625.89,0.27227326]
[1739302920355,0.3190047,626.95,625.88,0.27227326]
[1739302920559,0.3190047,626.95,625.89,0.27227326]
[1739302920961,0.3190047,626.95,625.88,0.27227326]
[1739302921261,0.3190047,626.95,625.89,0.27227326]
[1739302921461,0.3190047,626.95,625.9,0.27227326]
[1739302921659,0.3190047,626.95,625.91,0.31953475]
[1739302921862,0.3190047,626.95,625.92,0.27227326]
[1739302922362,0.3190047,626.95,625.91,0.31953475]
[1739302922567,0.3190047,626.95,625.93,0.27226029]
[1739302922759,0.3190047,626.95,625.92,0.27226029]
[1739302922957,0.3190047,626.95,625.93,0.27226029]
[1739302923365,0.3190047,626.95,625.94,0.27226029]
[1739302923560,0.3190047,626.95,625.92,0.27226029]
[1739302923758,0.3190047,626.95,625.93,0.27226029]
[1739302924163,0.3190047,626.95,625.94,0.27226029]
[1739302924464,0.3190047,626.95,625.95,0.27231009]
[1739302924664,1.33825992,626.94,625.92,0.27231009]
[1739302924860,1.33825992,626.93,625.93,0.27231009]
[1739302925060,1.33825992,626.92,625.92,0.27231009]
[1739302925260,1.33825992,626.91,625.93,0.27231009]
[1739302925467,1.33825992,626.9,625.92,0.27231009]
[1739302925763,1.33825992,626.89,625.93,0.27231009]
[1739302925963,1.33825992,626.88,625.92,0.27231009]
[1739302926165,1.33825992,626.87,625.92,0.27231009]
[1739302926366,1.33825992,626.86,625.92,0.27231009]
[1739302926565,1.33825992,626.85,625.92,0.27231009]
[1739302926865,1.33825992,626.84,625.92,0.27231009]
[1739302927058,1.33825992,626.83,625.93,0.31952454]
[1739302927264,1.33825992,626.82,625.94,0.27231009]
[1739302927460,1.17325967,627.57,625.95,0.31951433]
[1739302927461,1.33825992,626.81,625.95,0.31951433]
[1739302927663,1.33825992,626.8,625.96,0.27231009]
[1739302927863,1.33825992,626.79,625.97,0.31950412]
[1739302928060,1.33825992,626.78,625.98,0.27231009]
[1739302928268,1.33825992,626.77,625.98,0.27231009]
[1739302928464,1.33825992,626.76,625.98,0.27231009]
[1739302928660,1.33825992,626.75,625.99,0.31949392]
[1739302928863,1.33825992,626.74,626.0,0.27231009]
[1739302929067,1.33825992,626.73,626.0,0.27231009]
[1739302929263,1.33825992,626.72,626.0,0.27231009]
[1739302929465,1.33825992,626.71,626.0,0.27231009]
[1739302929665,1.33825992,626.7,626.01,0.31948371]
[1739302929968,1.33825992,626.69,626.02,0.27231009]
[1739302930168,1.33825992,626.68,626.03,0.3194735]
[1739302930365,1.33825992,626.67,626.04,0.27231009]
[1739302930669,1.33825992,626.66,626.05,0.3194633]
[1739302930867,1.33825992,626.65,626.06,0.27231009]
[1739302931063,1.33825992,626.64,626.06,0.59176828]
[1739302931262,1.33825992,626.63,626.07,0.27231009]
[1739302931466,1.33825992,626.62,626.08,0.31944799]
[1739302931666,1.33825992,626.61,626.08,0.31944799]
[1739302931867,1.33825992,626.6,626.09,0.27211331]
[1739302932066,1.33825992,626.59,626.09,0.27211331]
[1739302932268,1.33825992,626.58,626.1,0.31943778]
[1739302932463,1.33825992,626.57,626.11,0.27211331]
[1739302932668,1.33825992,626.56,626.12,0.31942758]
[1739302932964,1.34098682,626.55,626.13,0.27211331]
[1739302933168,4.02162623,628.14,626.13,0.27211331]
[1739302933169,1.34098682,626.54,626.14,0.31941738]
[1739302933365,1.34098682,626.53,626.15,0.27211331]
[1739302933572,1.34098682,626.52,626.15,0.27211331]
[1739302933774,1.49171072,628.04,626.15,0.27211331]
[1739302933973,1.63447116,628.03,626.15,0.27211331]
[1739302934172,1.63443007,628.02,626.16,0.27207078]
[1739302934373,1.63443007,628.01,626.15,0.27207078]
[1739302934673,1.63443007,628.0,626.16,0.27207078]
[1739302934874,1.63443007,627.99,626.17,0.27207078]
[1739302935073,1.63443007,627.98,626.15,0.27207078]
[1739302935373,1.34145163,627.97,626.14,0.31941738]
[1739302935573,0.31849669,627.95,626.15,0.27203666]
[1739302935769,1.63439546,627.94,626.16,0.31940718]
[1739302935970,0.31851191,627.92,626.16,0.59144384]
[1739302936176,1.34216787,627.91,626.17,0.27203666]
[1739302936375,1.34216787,627.9,626.18,0.27203666]
[1739302936572,1.34216787,627.89,626.2,0.31938677]
[1739302936773,1.66070007,627.88,626.21,0.27203666]
[1739302936969,1.66070514,627.87,626.23,0.31937147]
[1739302937275,1.66071022,627.86,626.24,0.27203666]
[1739302937477,1.34216787,627.85,626.25,0.59139793]
[1739302937678,1.34216787,627.84,626.26,0.27203666]
[1739302937875,1.34216787,627.83,626.26,0.27203666]
[1739302938077,1.34216787,627.82,626.27,0.31935107]
[1739302938374,1.66073558,627.81,626.28,0.27203666]
[1739302938578,1.66074066,627.8,626.29,0.31934088]
[1739302938778,1.66074573,627.79,626.3,0.27203666]
[1739302938981,1.66075081,627.78,626.31,0.31933068]
[1739302939183,1.66075588,627.77,626.32,0.27203666]
[1739302939481,1.6604718,627.76,626.33,0.31932048]
[1739302939680,1.66047687,627.75,626.34,0.27203666]
[1739302939979,1.66048195,627.74,626.35,0.31931028]
[1739302940174,1.66048702,627.73,626.36,0.27203666]
[1739302940474,1.6604921,627.72,626.36,0.27203666]
[1739302940678,1.66049718,627.71,626.36,0.27203666]
[1739302940872,1.66050225,627.7,626.36,0.27203666]
[1739302941076,1.66050733,627.69,626.36,0.27203666]
[1739302941379,1.34187871,627.68,626.36,0.27203666]
[1739302941580,1.34187871,627.67,626.36,0.27203666]
[1739302941779,1.34187871,627.66,626.36,0.27203666]
[1739302941975,1.34187871,627.65,626.36,0.27203666]
[1739302942175,1.34187871,627.64,626.37,0.31930009]
[1739302942381,1.34187871,627.63,626.38,0.27203666]
[1739302942681,1.34187871,627.62,626.38,0.27203666]
[1739302942881,1.34187871,627.61,626.38,0.27203666]
[1739302943081,1.34187871,627.6,626.38,0.27203666]
[1739302943282,1.34187871,627.59,626.38,0.27203666]
[1739302943475,1.34187871,627.58,626.38,0.27203666]
[1739302943675,1.34187871,627.57,626.38,0.27203666]
[1739302943981,1.34165581,627.56,626.39,0.31928989]
[1739302944176,1.34165581,627.55,626.4,0.27203666]
[1739302944378,0.31862862,627.69,626.41,0.3192797]
[1739302944379,1.34165581,627.54,626.41,0.3192797]
[1739302944579,1.34165581,627.53,626.42,0.27203666]
[1739302944781,1.34165581,627.52,626.42,0.27203666]
[1739302944981,1.34165581,627.51,626.42,0.27203666]
[1739302945182,0.31862862,627.69,626.41,0.3192797]
[1739302945183,1.34165581,627.5,626.41,0.3192797]
[1739302945378,1.34165581,627.49,626.42,0.27190545]
[1739302945577,1.34165581,627.48,626.42,0.27190545]
[1739302945776,1.34165581,627.47,626.42,0.27190545]
[1739302945977,1.34165581,627.46,626.44,0.31926441]
[1739302946177,1.34165581,627.45,626.45,0.27190545]
[1739302946479,1.34165581,627.44,626.46,0.31925422]
[1739302946678,1.34165581,627.43,626.47,0.27190545]
[1739302946881,1.34165581,627.42,626.47,0.27190545]
[1739302947182,1.34165581,627.41,626.49,0.31923893]
[1739302947483,1.34165581,627.4,626.5,0.27190545]
[1739302947684,1.34165581,627.39,626.5,0.27190545]
[1739302947982,1.34165581,627.38,626.52,0.31922364]
[1739302948281,1.34165581,627.37,626.53,0.27190545]
[1739302948482,1.34165581,627.36,626.55,0.31920836]
[1739302948782,1.34165581,627.35,626.56,0.27190545]
[1739302948977,2.1667194,628.84,626.57,0.31919817]
[1739302949183,0.31810156,628.73,626.58,0.27190545]
[1739302949379,0.29269977,628.72,626.6,0.31918289]
[1739302949582,0.31815723,628.62,626.61,0.27190545]
[1739302949780,0.29269977,628.61,626.63,0.31916761]
[1739302949981,0.31817241,628.59,626.64,0.27190545]
[1739302950283,1.63155642,628.58,626.66,0.31915233]
[1739302950583,0.3181876,628.56,626.67,0.27190545]
[1739302950885,0.29269977,628.55,626.68,0.31914214]
[1739302951076,0.31820279,628.53,626.69,0.27180336]
[1739302951278,0.29270777,628.52,626.7,0.31913196]
[1739302951481,0.31821797,628.5,626.71,0.27180336]
[1739302951678,1.63177981,628.49,626.71,0.27180336]
[1739302951881,0.31823316,628.47,626.72,0.31912177]
[1739302952082,1.63177981,628.46,626.73,0.27180336]
[1739302952282,0.31824836,628.44,626.74,0.31911159]
[1739302952479,1.63177981,628.43,626.75,0.27180336]
[1739302952679,0.31826355,628.41,626.76,0.31910141]
[1739302952885,1.63177981,628.4,626.77,0.27180336]
[1739302953184,0.31827874,628.38,626.78,0.31909122]
[1739302953386,1.33907204,628.37,626.79,0.27180336]
[1739302953580,0.31829394,628.35,626.79,0.27180336]
[1739302953782,1.6318372,628.34,626.8,0.27186039]
[1739302954087,0.31830914,628.32,626.81,0.27186039]
[1739302954288,1.63007409,628.31,626.79,0.27186039]
[1739302954489,1.63007409,628.3,626.8,0.27186039]
[1739302954681,0.31830914,628.32,626.78,0.31909122]
[1739302954682,1.62958846,628.29,626.79,0.27186039]
[1739302954987,1.62958846,628.28,626.8,0.27186039]
[1739302955186,1.62958846,628.27,626.81,0.27186039]
[1739302955385,1.62958846,628.26,626.81,0.27186039]
[1739302955584,7.81968334,628.25,626.82,0.27195521]
[1739302955783,0.31835474,628.23,626.79,0.27195521]
[1739302955988,5.65296394,628.22,626.8,0.27195521]
[1739302956289,0.31836994,628.2,626.81,0.27195521]
[1739302956483,7.81968334,628.19,626.79,0.27195521]
[1739302956687,0.31838515,628.17,626.8,0.27195521]
[1739302956888,7.81968334,628.16,626.79,0.27195521]
[1739302957084,7.81969448,628.15,626.78,0.31909122]
[1739302957292,0.31840542,628.13,626.78,0.31909122]
[1739302957489,1.62968742,628.12,626.79,0.27195788]
[1739302957689,1.62968742,628.11,626.79,0.27195788]
[1739302957889,0.3184257,628.09,626.79,0.27195788]
[1739302958086,1.62968742,628.08,626.79,0.27195788]
[1739302958286,0.31844091,628.06,626.79,0.27195788]
[1739302958491,1.62968742,628.05,626.79,0.27195788]
[1739302958686,0.31844091,628.06,626.18,1.66422904]
[1739302958687,0.31845612,628.03,626.8,0.27195788]
[1739302958885,1.62968742,628.02,626.19,0.27195788]
[1739302959091,0.31847133,628.0,626.81,0.27195788]
[1739302959287,1.62968742,627.99,626.82,0.27195788]
[1739302959487,0.31848655,627.97,626.82,0.27195788]
[1739302959689,1.62968742,627.96,626.83,0.27195788]
[1739302959893,1.62968742,627.95,626.21,0.27195788]
[1739302960090,0.31850683,627.93,626.22,0.59133445]
[1739302960391,1.62968742,627.92,626.23,0.27195788]
[1739302960593,1.3368233,627.91,626.24,0.27195788]
[1739302960790,1.3368233,627.9,626.25,0.27195788]
[1739302960993,1.3368233,627.89,626.26,0.27195788]
[1739302961187,1.3368233,627.88,626.27,0.27195788]
[1739302961395,1.65536057,627.87,626.28,0.59130385]
[1739302961588,1.3368233,627.86,626.29,0.59129876]
[1739302961788,1.3368233,627.85,626.31,0.31933068]
[1739302961994,1.65537579,627.84,626.32,0.27195788]
[1739302962195,1.3368233,627.83,626.32,0.27195788]
[1739302962495,1.3368233,627.82,626.33,0.31932048]
[1739302962695,1.3368233,627.81,626.34,0.27195788]
[1739302962894,1.3368233,627.8,626.35,0.27195236]
[1739302963089,1.3368233,627.79,626.36,0.27195236]
[1739302963295,1.3368233,627.78,626.34,0.27195236]
[1739302963495,0.31855249,627.84,626.34,0.27195236]
[1739302963496,1.3368233,627.77,626.35,0.31931028]
[1739302963794,1.3368233,627.76,626.36,0.27195236]
[1739302963995,1.3368233,627.75,626.37,0.31930009]
[1739302964196,1.3368233,627.74,626.38,0.27195236]
[1739302964498,1.65676217,627.73,626.39,0.31928989]
[1739302964692,1.33815386,627.72,626.39,0.31928989]
[1739302964896,1.33815386,627.71,626.4,0.27195236]
[1739302965099,1.33815386,627.7,626.4,0.27195236]
[1739302965297,1.33815386,627.69,626.4,0.27195236]
[1739302965591,1.65678755,627.68,626.4,0.27195236]
[1739302965796,1.65679263,627.67,626.4,0.27195236]
[1739302965996,1.65679771,627.66,626.4,0.27195236]
[1739302966297,1.33815386,627.65,626.39,0.31928989]
[1739302966597,1.33815386,627.64,626.41,0.3192797]
[1739302966792,1.33815386,627.63,626.42,0.27195844]
[1739302966994,1.33815386,627.62,626.43,0.31926951]
[1739302967191,0.31864385,627.66,626.44,0.27195844]
[1739302967192,1.33815386,627.61,626.44,0.27195844]
[1739302967392,1.33815386,627.6,626.45,0.31925931]
[1739302967589,1.33815386,627.59,626.46,0.27195844]
[1739302967792,1.33815386,627.58,626.46,0.27195844]
[1739302967997,1.33815386,627.57,626.47,0.31924912]
[1739302968197,1.33815386,627.56,626.48,0.27195844]
[1739302968397,1.33815386,627.55,626.49,0.59120196]
[1739302968598,1.33815386,627.54,626.5,0.59119686]
[1739302968797,1.33815386,627.53,626.5,0.59119686]
[1739302968999,1.33815386,627.52,626.51,0.27196303]
[1739302969198,1.33815386,627.51,626.51,0.27196303]
[1739302969498,1.33815386,627.5,626.51,0.27196303]
[1739302969695,1.33815386,627.49,626.51,0.27196303]
[1739302969897,1.33815386,627.48,626.51,0.27196303]
[1739302970199,1.33815386,627.47,626.5,0.31923383]
[1739302970402,1.33815386,627.46,626.51,0.27201929]
[1739302970601,1.33890487,627.45,626.51,0.27201929]
[1739302970799,1.33890487,627.44,626.51,0.27201929]
[1739302971001,1.33892336,627.43,626.51,0.27201929]
[1739302971202,1.33892336,627.42,626.51,0.27201929]
[1739302971402,1.33892336,627.41,626.51,0.27201929]
[1739302971596,0.31864385,627.66,626.51,0.27201929]
[1739302971597,1.33892336,627.4,626.51,0.27201929]
[1739302971802,1.33892336,627.39,626.51,0.27201929]
[1739302972100,1.33892336,627.38,626.51,0.27201929]
[1739302972301,1.33892336,627.37,626.51,0.27201929]
[1739302972602,1.33892336,627.36,626.51,0.27201929]
[1739302972799,0.31864385,627.66,626.51,0.27201929]
[1739302972800,1.33892336,627.35,626.51,0.27201929]
[1739302972996,1.33892336,627.34,626.51,0.27201929]
[1739302973200,1.33892336,627.33,626.51,0.27201929]
[1739302973400,1.33892336,627.32,626.51,0.27201929]
[1739302973602,1.33892336,627.31,626.51,0.27201929]
[1739302973804,1.33892336,627.3,626.5,0.31923383]
[1739302974003,1.33892336,627.29,626.52,0.27200517]
[1739302974197,1.33892336,627.28,626.53,0.27200517]
[1739302974395,1.33892336,627.28,626.5,0.31923383]
[1739302974396,1.33892336,627.27,626.51,0.27200517]
[1739302974601,1.33892336,627.26,626.52,0.27200517]
[1739302974801,1.33963797,627.25,626.51,0.27200517]
[1739302975002,1.33963797,627.24,626.52,0.27200517]
[1739302975199,1.33963797,627.23,626.51,0.27200517]
[1739302975400,1.33963797,627.22,626.51,0.27200517]
[1739302975599,1.33963797,627.21,626.51,0.27200517]
[1739302975804,1.33963797,627.2,626.52,0.27200473]
[1739302976100,1.33963797,627.19,626.53,0.27200473]
[1739302976301,1.33963797,627.18,626.51,0.27200473]
[1739302976499,1.33963797,627.17,626.51,0.27200473]
[1739302976703,1.33963797,627.16,626.51,0.27200473]
[1739302976903,1.33963797,627.15,626.51,0.27200473]
[1739302977205,1.33963797,627.14,626.51,0.27200473]
[1739302977402,1.33963797,627.13,626.51,0.27200473]
[1739302977600,1.33963797,627.12,626.51,0.27200473]